bitfinex-derivatives/quotes_BNBF0:USTF0_20250211
["timestamp","ask_amount","ask_price","bid_price","bid_amount"]
[1739310448885,1.33689039,639.33,638.23,0.31336665]
[1739310449088,1.33689039,639.32,638.23,0.31336665]
[1739310449285,1.33689039,639.31,638.23,0.31336665]
[1739310449486,1.33689039,639.3,638.23,0.31336665]
[1739310449691,1.33689039,639.29,638.23,0.31336665]
[1739310449994,1.33689039,639.28,638.23,0.31336665]
[1739310450292,1.33689039,639.27,638.23,0.31336665]
[1739310450493,1.33689039,639.26,638.23,0.31336665]
[1739310450697,1.33689039,639.25,638.23,0.31336665]
[1739310450891,1.33689039,639.24,638.23,0.31336665]
[1739310451093,1.33689039,639.23,638.23,0.31336665]
[1739310451292,1.33684868,639.22,638.23,0.31336665]
[1739310451494,1.33684868,639.21,638.23,0.31336665]
[1739310451792,1.33684868,639.2,638.23,0.31336665]
[1739310451993,1.33684868,639.19,638.23,0.31336665]
[1739310452192,1.33684868,639.18,638.23,0.31336665]
[1739310452493,1.33684868,639.17,638.23,0.31336665]
[1739310452694,1.33684868,639.16,638.23,0.31336665]
[1739310452896,1.33684868,639.15,638.23,0.31336665]
[1739310453085,1.33684868,639.14,638.23,0.31336665]
[1739310453292,1.078,639.5,638.23,0.31336665]
[1739310453293,1.33684868,639.13,638.23,0.31336665]
[1739310453590,1.078,639.5,638.23,0.31336665]
[1739310453591,1.33684868,639.12,638.23,0.31336665]
[1739310453792,1.33569484,639.11,638.23,0.31336665]
[1739310453990,1.33569484,639.1,638.23,0.31336665]
[1739310454192,1.33569484,639.09,638.23,0.31336665]
[1739310454395,1.33569484,639.08,638.23,0.31336665]
[1739310454596,1.33569484,639.07,638.23,0.31336665]
[1739310454788,1.33569484,639.06,638.23,0.31336665]
[1739310454992,1.33569484,639.05,638.23,0.31336665]
[1739310455189,1.33569484,639.04,638.23,0.31336665]
[1739310455390,1.33569484,639.03,638.23,0.31336665]
[1739310455591,1.33569484,639.02,638.23,0.31336665]
[1739310455794,1.33569484,639.01,638.23,0.31336665]
[1739310455993,0.86,639.13,638.23,0.31336665]
[1739310455994,1.33569484,639.0,638.23,0.31336665]
[1739310456197,1.33569484,638.99,638.23,0.31336665]
[1739310456493,1.33569484,638.98,638.23,0.31336665]
[1739310456697,1.33569484,638.97,638.23,0.31336665]
[1739310456996,1.33569484,638.96,637.0,2.61661968]
[1739310457295,1.33569484,638.95,637.02,0.31396188]
[1739310457496,1.33569484,638.94,637.02,0.31396188]
[1739310457689,1.33569484,638.93,637.02,0.31396188]
[1739310457894,1.33569484,638.92,637.02,0.31396188]
[1739310458198,1.33569484,638.91,637.02,0.31396188]
[1739310458496,1.33569484,638.9,637.02,0.31396188]
[1739310458696,1.33569484,638.89,637.02,0.31396188]
[1739310458997,1.33341893,638.88,637.02,0.31396188]
[1739310459198,1.33341893,638.87,637.02,0.31396188]
[1739310459391,0.661,638.96,637.02,0.31396188]
[1739310459595,1.33288204,638.95,637.02,0.31396188]
[1739310459795,1.33288204,638.94,637.02,0.31396188]
[1739310459996,1.33288204,638.93,637.02,0.31396188]
[1739310460198,1.33288204,638.92,637.02,0.31396188]
[1739310460397,1.33288204,638.91,637.02,0.31396188]
[1739310460596,1.33288204,638.9,637.02,0.31396188]
[1739310460791,1.33288204,638.89,637.02,0.31396188]
[1739310460992,1.33288204,638.88,637.02,0.31396188]
[1739310461194,1.33288204,638.87,637.02,0.31396188]
[1739310461393,1.33288204,638.86,637.02,0.31396188]
[1739310461598,1.3316695,638.85,637.02,0.31396188]
[1739310461799,1.3316695,638.84,637.02,0.31396188]
[1739310461999,1.3316695,638.83,637.02,0.31396188]
[1739310462199,1.3316695,638.82,637.02,0.31396188]
[1739310462400,0.661,638.96,637.03,1.63585724]
[1739310462601,1.33094843,638.95,637.05,0.31394709]
[1739310462801,1.33094843,638.94,637.05,0.31394709]
[1739310463001,0.661,638.96,637.05,0.31394709]
[1739310469007,0.661,638.96,637.1,1.40358505]
[1739310470005,0.661,638.96,637.11,2.60150318]
[1739310470201,0.661,638.96,637.13,0.31390767]
[1739310471306,0.661,638.96,637.32,1.40358505]
[1739310471903,0.661,638.96,637.34,0.31380424]
[1739310473911,0.661,638.96,637.66,1.40358505]
[1739310474111,0.661,638.96,637.68,0.31363693]
[1739310476111,0.661,638.96,637.73,1.40358505]
[1739310476313,0.661,638.96,637.75,0.3136025]
[1739310477509,0.661,638.96,637.79,1.40358505]
[1739310477713,0.661,638.96,637.81,0.313573]
[1739310485314,0.697,639.35,637.81,0.313573]
[1739310486416,1.99451567,639.34,637.81,0.313573]
[1739310486722,1.33351567,639.33,637.81,0.313573]
[1739310486920,1.33351567,639.32,637.81,0.313573]
[1739310487122,1.33351567,639.31,637.81,0.313573]
[1739310487322,1.33351567,639.3,637.81,0.313573]
[1739310487621,1.3344546,639.29,637.81,0.313573]
[1739310487822,1.3344546,639.28,637.81,0.313573]
[1739310488021,1.3344546,639.27,637.81,0.313573]
[1739310488220,1.3344546,639.26,637.81,0.313573]
[1739310488416,1.3344546,639.25,637.81,0.313573]
[1739310488617,1.3344546,639.24,637.81,0.313573]
[1739310488822,1.3344546,639.23,637.81,0.313573]
[1739310489022,1.3344546,639.22,637.81,0.313573]
[1739310489223,0.661,639.34,637.81,0.313573]
[1739310489414,1.33499494,639.33,637.81,0.313573]
[1739310489619,1.33533427,639.32,637.81,0.313573]
[1739310489819,1.33533427,639.31,637.81,0.313573]
[1739310490016,1.33533427,639.3,637.81,0.313573]
[1739310490223,1.33533427,639.29,637.81,0.313573]
[1739310490416,1.759,639.34,637.81,0.313573]
[1739310490417,1.33533427,639.28,637.81,0.313573]
[1739310490620,1.33533427,639.27,637.81,0.313573]
[1739310490816,1.759,639.34,637.81,0.313573]
[1739310491022,1.33573454,639.33,637.81,0.313573]
[1739310491323,1.759,639.34,637.81,0.313573]
[1739310493225,2.644,639.34,637.81,0.313573]
[1739310501937,1.33493522,639.33,637.81,0.313573]
[1739310502236,2.644,639.34,637.81,0.313573]
[1739310502434,1.33494166,639.33,637.81,0.313573]
[1739310502630,2.644,639.34,637.81,0.313573]
[1739310502831,1.33494416,639.33,637.81,0.313573]
[1739310503030,2.644,639.34,637.81,0.313573]
[1739310503232,1.33495698,639.33,637.81,0.313573]
[1739310503433,2.644,639.34,637.81,0.313573]
[1739310503635,1.33494359,639.33,637.81,0.313573]
[1739310503831,2.644,639.34,637.81,0.313573]
[1739310504238,1.33507864,639.33,637.81,0.313573]
[1739310504435,2.644,639.34,637.84,1.35635851]
[1739310504739,2.644,639.34,637.86,0.31354842]
[1739310506137,1.546,639.34,637.86,0.31354842]
[1739310507845,1.546,639.34,637.89,1.35635851]
[1739310508044,1.546,639.34,637.91,0.31352385]
[1739310509940,1.546,639.34,637.96,1.35635851]
[1739310510144,1.546,639.34,637.98,0.31348945]
[1739310512343,0.885,639.34,637.98,0.31348945]
[1739310513547,0.661,639.33,637.98,0.31348945]
[1739310517655,1.576,639.33,637.98,0.31348945]
[1739310523455,1.34255633,639.32,637.98,0.31348945]
[1739310523756,1.576,639.33,637.98,0.31348945]
[1739310523955,1.34256396,639.32,637.98,0.31348945]
[1739310524150,1.34265456,639.31,637.98,0.31348945]
[1739310524350,1.34357055,639.3,637.98,0.31348945]
[1739310524550,1.34357055,639.29,637.98,0.31348945]
[1739310524750,1.576,639.33,637.98,0.31348945]
[1739310524950,1.34357006,639.32,637.98,0.31348945]
[1739310525149,1.34357006,639.31,637.98,0.31348945]
[1739310525352,1.34357006,639.3,637.98,0.31348945]
[1739310525554,1.34357006,639.29,637.98,0.31348945]
[1739310525753,1.34357006,639.28,637.98,0.31348945]
[1739310525948,1.576,639.33,638.24,1.35635851]
[1739310526155,1.34449266,639.32,638.26,0.31335192]
[1739310526350,1.34449266,639.31,638.26,0.31335192]
[1739310526555,1.34449266,639.3,638.26,0.31335192]
[1739310526755,1.34449266,639.29,638.26,0.31335192]
[1739310526952,1.34490795,639.28,638.26,0.31335192]
[1739310527157,1.34490457,639.27,638.26,0.31335192]
[1739310527356,1.34490457,639.26,638.26,0.31335192]
[1739310527558,1.34541412,639.25,638.26,0.31335192]
[1739310527757,1.576,639.33,638.26,0.31335192]
[1739310527957,1.34541618,639.32,638.26,0.31335192]
[1739310528157,1.34541618,639.31,638.26,0.31335192]
[1739310528457,1.576,639.33,638.26,0.31335192]
[1739310528657,1.34557703,639.32,638.26,0.31335192]
[1739310528957,0.915,639.33,638.26,0.31335192]
[1739310529855,1.576,639.33,638.26,0.31335192]
[1739310532857,1.34576736,639.32,638.26,0.31335192]
[1739310533057,1.576,639.33,638.26,0.31335192]
[1739310533259,1.3458245,639.32,638.26,0.31335192]
[1739310533461,1.576,639.33,638.26,0.31335192]
[1739310533654,1.34582205,639.32,638.26,0.31335192]
[1739310533860,1.34583496,639.31,638.26,0.31335192]
[1739310534159,1.576,639.33,638.26,0.31335192]
[1739310534561,1.34588746,639.32,638.26,0.31335192]
[1739310534861,1.34591312,639.31,638.32,1.35635851]
[1739310535060,1.576,639.33,638.34,0.31331265]
[1739310535263,1.34591312,639.32,638.34,0.31331265]
[1739310535461,1.34591312,639.31,638.34,0.31331265]
[1739310535654,1.576,639.33,638.34,0.31331265]
[1739310535859,1.34596208,639.32,638.34,0.31331265]
[1739310536163,1.34596208,639.31,638.34,0.31331265]
[1739310536363,1.34596208,639.3,638.34,0.31331265]
[1739310536664,1.34596208,639.29,638.34,0.31331265]
[1739310536860,1.34596208,639.28,638.34,0.31331265]
[1739310537057,1.34596208,639.27,638.34,0.31331265]
[1739310537256,1.34596208,639.26,638.34,0.31331265]
[1739310537464,1.34596208,639.25,638.34,0.31331265]
[1739310537656,1.34596208,639.24,638.34,0.31331265]
[1739310537857,1.34596208,639.23,638.34,0.31331265]
[1739310538164,1.576,639.33,638.34,0.31331265]
[1739310538364,1.34611856,639.32,638.34,0.31331265]
[1739310538562,1.34611856,639.31,638.34,0.31331265]
[1739310538863,1.34611856,639.3,638.34,0.31331265]
[1739310539062,1.34611856,639.29,638.34,0.31331265]
[1739310539265,1.34611856,639.28,638.34,0.31331265]
[1739310539462,1.34611856,639.27,638.34,0.31331265]
[1739310539762,1.34611856,639.26,638.34,0.31331265]
[1739310539962,1.34611856,639.25,638.34,0.31331265]
[1739310540259,1.34611856,639.24,638.34,0.31331265]
[1739310540461,1.34611856,639.23,638.34,0.31331265]
[1739310540657,1.34611856,639.22,638.34,0.31331265]
[1739310540858,1.34611856,639.21,638.34,0.31331265]
[1739310541060,1.34611856,639.2,638.34,0.31331265]
[1739310541259,1.34611856,639.19,638.34,0.31331265]
[1739310541463,1.34611856,639.18,638.34,0.31331265]
[1739310541761,1.34611856,639.17,638.34,0.31331265]
[1739310541959,1.34611856,639.16,638.34,0.31331265]
[1739310542160,1.34611856,639.15,638.34,0.31331265]
[1739310542360,1.34611856,639.14,638.34,0.31331265]
[1739310542563,1.34611856,639.13,638.34,0.31331265]
[1739310542769,0.661,639.33,638.34,0.31331265]
[1739310542961,1.34605898,639.32,638.34,0.31331265]
[1739310543164,1.34605898,639.31,638.34,0.31331265]
[1739310543468,1.34605898,639.3,638.34,0.31331265]
[1739310543671,1.34605898,639.29,638.34,0.31331265]
[1739310543871,1.34605898,639.28,638.34,0.31331265]
[1739310544071,1.34605898,639.27,638.34,0.31331265]
[1739310544268,1.34605898,639.26,638.34,0.31331265]
[1739310544465,1.34605898,639.25,638.34,0.31331265]
[1739310544665,1.34605898,639.24,638.34,0.31331265]
[1739310544873,1.34605898,639.23,638.34,0.31331265]
[1739310545171,1.34605898,639.22,638.34,0.31331265]
[1739310545372,1.34605898,639.21,638.34,0.31331265]
[1739310545570,1.34605898,639.2,638.34,0.31331265]
[1739310545770,1.34605898,639.19,638.34,0.31331265]
[1739310545972,1.34605898,639.18,638.34,0.31331265]
[1739310546172,1.34605898,639.17,638.34,0.31331265]
[1739310546369,1.34605898,639.16,638.34,0.31331265]
[1739310546573,1.34605898,639.15,638.34,0.31331265]
[1739310546767,1.34605898,639.14,638.34,0.31331265]
[1739310546968,1.34605898,639.13,638.34,0.31331265]
[1739310547171,1.34605898,639.12,638.34,0.31331265]
[1739310547371,1.34605898,639.11,638.34,0.31331265]
[1739310547573,1.34605898,639.1,638.34,0.31331265]
[1739310547873,1.34605898,639.09,638.34,0.31331265]
[1739310548069,1.34605898,639.08,638.34,0.31331265]
[1739310548269,1.34605898,639.07,638.34,0.31331265]
[1739310548471,0.98,639.3,638.34,0.31331265]
[1739310548472,1.34605898,639.06,638.34,0.31331265]
[1739310548673,1.34605898,639.05,638.34,0.31331265]
[1739310548871,1.34602856,639.04,638.34,0.31331265]
[1739310549076,1.34602856,639.03,638.34,0.31331265]
[1739310549266,1.34602856,639.02,638.34,0.31331265]
[1739310549469,1.34602856,639.01,638.34,0.31331265]
[1739310549673,0.98,639.3,638.34,0.31331265]
[1739310549674,1.34602856,639.0,638.34,0.31331265]
[1739310549978,1.34602856,638.99,638.34,0.31331265]
[1739310550168,1.34602856,638.98,638.34,0.31331265]
[1739310550368,1.34602856,638.97,638.34,0.31331265]
[1739310550570,1.34602856,638.96,638.34,0.31331265]
[1739310550774,1.34602856,638.95,638.34,0.31331265]
[1739310550971,1.34563207,638.94,638.34,0.31331265]
[1739310551171,0.662,638.95,638.34,0.31331265]
[1739310552077,1.34539067,638.94,638.34,0.31331265]
[1739310552276,0.662,638.95,638.34,0.31331265]
[1739310552478,1.34506867,638.94,638.34,0.31331265]
[1739310552673,1.34506867,638.93,638.34,0.31331265]
[1739310552877,0.662,638.95,638.34,0.31331265]
[1739310553073,1.34512228,638.94,638.34,0.31331265]
[1739310553272,1.34512228,638.93,638.34,0.31331265]
[1739310553476,0.662,638.95,638.34,0.31331265]
[1739310553477,1.34512228,638.92,638.34,0.31331265]
[1739310553773,1.34512228,638.91,638.34,0.31331265]
[1739310554077,0.662,638.95,638.34,0.31331265]
[1739310554277,1.34475738,638.94,638.34,0.31331265]
[1739310554478,1.34475738,638.93,638.34,0.31331265]
[1739310554779,1.34475738,638.92,638.34,0.31331265]
[1739310554977,1.34475738,638.91,638.34,0.31331265]
[1739310555172,0.662,638.95,638.34,0.31331265]
[1739310555373,1.34477042,638.94,638.34,0.31331265]
[1739310555673,1.34477042,638.93,638.34,0.31331265]
[1739310555872,1.34477042,638.92,638.34,0.31331265]
[1739310556071,1.34477042,638.91,638.34,0.31331265]
[1739310556275,0.662,638.95,638.34,0.31331265]
[1739310556572,1.34456081,638.94,638.34,0.31331265]
[1739310556775,1.34456081,638.93,638.34,0.31331265]
[1739310556980,0.662,638.95,638.34,0.31331265]
[1739310557173,1.34456747,638.94,638.34,0.31331265]
[1739310557372,1.34456747,638.93,638.34,0.31331265]
[1739310557577,1.34456747,638.92,638.34,0.31331265]
[1739310557772,1.34456747,638.91,638.34,0.31331265]
[1739310557970,1.34456747,638.9,638.34,0.31331265]
[1739310558173,1.34456747,638.89,638.34,0.31331265]
[1739310558376,1.34456747,638.88,638.34,0.31331265]
[1739310558577,0.662,638.95,638.34,0.31331265]
[1739310558777,1.34474436,638.94,638.34,0.31331265]
[1739310558973,0.662,638.95,638.34,0.31331265]
[1739310558974,1.34474436,638.93,638.34,0.31331265]
[1739310559178,1.34473556,638.92,638.34,0.31331265]
[1739310559478,1.34473556,638.91,638.34,0.31331265]
[1739310559677,1.34481719,638.9,638.34,0.31331265]
[1739310559874,1.34481719,638.89,638.34,0.31331265]
[1739310560080,0.662,638.95,638.34,0.31331265]
[1739310560281,1.34484571,638.94,638.34,0.31331265]
[1739310560480,1.34484571,638.93,638.34,0.31331265]
[1739310560778,1.34484571,638.92,638.34,0.31331265]
[1739310561081,1.34484571,638.91,638.34,0.31331265]
[1739310561282,1.34484571,638.9,638.34,0.31331265]
[1739310561476,0.662,638.95,638.34,0.31331265]
[1739310561477,1.34484571,638.89,638.34,0.31331265]
[1739310561683,0.662,638.95,638.34,0.31331265]
[1739310561876,1.34445636,638.94,638.34,0.31331265]
[1739310562078,1.34445636,638.93,638.34,0.31331265]
[1739310562280,1.34445636,638.92,638.34,0.31331265]
[1739310562481,1.34445636,638.91,638.34,0.31331265]
[1739310562682,1.34445636,638.9,638.34,0.31331265]
[1739310562880,1.34445636,638.89,638.34,0.31331265]
[1739310563084,0.662,638.95,638.34,0.31331265]
[1739310563283,1.34417034,638.94,638.34,0.31331265]
[1739310563585,1.34417034,638.93,638.34,0.31331265]
[1739310563883,1.34417034,638.92,638.34,0.31331265]
[1739310564079,1.34417034,638.91,638.34,0.31331265]
[1739310564278,1.34417034,638.9,638.34,0.31331265]
[1739310564481,1.34417034,638.89,638.34,0.31331265]
[1739310564683,1.34417034,638.88,638.34,0.31331265]
[1739310564983,1.34417034,638.87,638.34,0.31331265]
[1739310565185,0.662,638.95,638.34,0.31331265]
[1739310565386,1.34370157,638.94,638.34,0.31331265]
[1739310565581,0.662,638.95,638.34,0.31331265]
[1739310566779,1.34336953,638.94,638.34,0.31331265]
[1739310567082,0.662,638.95,638.34,0.31331265]
[1739310567589,1.343392,638.94,638.34,0.31331265]
[1739310568086,0.662,638.95,638.34,0.31331265]
[1739310569688,1.776,638.95,638.34,0.31331265]
[1739310572488,1.34319548,638.94,638.34,0.31331265]
[1739310572687,1.34319548,638.93,638.34,0.31331265]
[1739310572887,1.34319548,638.92,638.34,0.31331265]
[1739310573192,1.34319548,638.91,638.34,0.31331265]
[1739310573394,1.114,638.95,638.34,0.31331265]
[1739310573594,1.34316702,638.94,638.34,0.31331265]
[1739310573793,1.34316702,638.93,638.34,0.31331265]
[1739310573992,1.34316702,638.92,638.34,0.31331265]
[1739310574193,1.34316702,638.91,638.34,0.31331265]
[1739310574393,1.34316702,638.9,638.34,0.31331265]
[1739310574594,0.662,638.94,638.34,0.31331265]
[1739310574794,1.34314313,638.93,638.34,0.31331265]
[1739310574994,0.662,638.94,638.34,0.31331265]
[1739310574995,1.34314313,638.92,638.34,0.31331265]
[1739310575197,1.34314313,638.91,638.34,0.31331265]
[1739310575399,1.34314313,638.9,638.34,0.31331265]
[1739310575695,0.662,638.94,638.34,0.31331265]
[1739310575897,1.34313633,638.93,638.34,0.31331265]
[1739310576093,1.34313633,638.92,638.34,0.31331265]
[1739310576293,1.34313633,638.91,638.34,0.31331265]
[1739310576493,1.3432467,638.9,638.34,0.31331265]
[1739310576694,1.3432467,638.89,638.34,0.31331265]
[1739310576995,1.3432467,638.88,638.34,0.31331265]
[1739310577197,1.3432467,638.87,638.34,0.31331265]
[1739310577390,0.662,638.94,638.34,0.31331265]
[1739310577391,1.3432467,638.86,638.34,0.31331265]
[1739310577595,1.3432467,638.85,638.34,0.31331265]
[1739310577793,1.3432467,638.84,638.34,0.31331265]
[1739310577995,1.3430288,638.83,638.34,0.31331265]
[1739310578195,0.662,638.94,638.34,0.31331265]
[1739310578396,1.34305689,638.93,638.34,0.31331265]
[1739310578596,1.34305689,638.92,638.34,0.31331265]
[1739310578792,1.34305689,638.91,638.34,0.31331265]
[1739310578993,1.34305689,638.9,638.34,0.31331265]
[1739310579198,1.34305689,638.89,638.34,0.31331265]
[1739310579398,1.34305689,638.88,638.34,0.31331265]
[1739310579598,1.34305689,638.87,638.34,0.31331265]
[1739310579797,1.34305689,638.86,638.34,0.31331265]
[1739310579999,1.34305689,638.85,638.34,0.31331265]
[1739310580200,1.34291472,638.84,638.34,0.31331265]
[1739310580393,1.34291472,638.83,638.34,0.31331265]
[1739310580596,0.662,638.94,638.34,0.31331265]
[1739310580794,1.34281079,638.93,637.31,1.35635851]
[1739310581101,1.34281079,638.92,637.31,1.35635851]
[1739310581298,1.34281079,638.91,637.31,1.35635851]
[1739310581496,1.34281079,638.9,637.41,1.35635851]
[1739310581800,1.34281079,638.89,637.41,1.35635851]
[1739310581997,0.662,638.94,637.41,1.35635851]
[1739310582196,1.3426646,638.93,637.41,1.35635851]
[1739310582394,1.3426646,638.92,637.43,0.31375994]
[1739310582595,1.3426646,638.91,637.43,0.31375994]
[1739310582799,1.3426646,638.9,637.43,0.31375994]
[1739310583095,1.3426646,638.89,637.43,0.31375994]
[1739310583300,1.3426646,638.88,637.43,0.31375994]
[1739310583500,1.3426646,638.87,637.43,0.31375994]
[1739310583802,1.3426646,638.86,637.43,0.31375994]
[1739310583999,1.3426646,638.85,637.43,0.31375994]
[1739310584196,1.34198135,638.84,637.43,0.31375994]
[1739310584402,1.34198135,638.83,637.43,0.31375994]
[1739310584602,1.3415557,638.82,637.43,0.31375994]
[1739310584903,1.3415557,638.81,637.43,0.31375994]
[1739310585202,1.3415557,638.8,637.43,0.31375994]
[1739310585502,1.3415557,638.79,637.43,0.31375994]
[1739310585702,1.3415557,638.78,637.43,0.31375994]
[1739310585902,1.3415557,638.77,637.43,0.31375994]
[1739310586200,1.3415557,638.76,637.43,0.31375994]
[1739310586504,1.34146139,638.75,637.43,0.31375994]
[1739310586804,1.34146139,638.74,637.43,0.31375994]
[1739310587103,1.34146139,638.73,637.43,0.31375994]
[1739310587298,1.34146139,638.72,637.43,0.31375994]
[1739310587502,1.34146139,638.71,637.43,0.31375994]
[1739310587800,1.34146139,638.7,637.43,0.31375994]
[1739310587996,1.34146139,638.69,637.43,0.31375994]
[1739310588196,0.662,638.94,637.43,0.31375994]
[1739310588197,1.34095307,638.68,637.43,0.31375994]
[1739310588396,1.34095307,638.67,637.43,0.31375994]
[1739310588605,1.34095307,638.66,637.43,0.31375994]
[1739310588801,1.34095307,638.65,637.43,0.31375994]
[1739310588996,1.34095307,638.64,637.43,0.31375994]
[1739310589201,1.34095307,638.63,637.43,0.31375994]
[1739310589499,1.34095307,638.62,637.43,0.31375994]
[1739310589697,1.34095307,638.61,637.43,0.31375994]
[1739310589900,0.662,638.94,637.43,0.31375994]
[1739310590100,1.340345,638.93,637.43,0.31375994]
[1739310590297,1.340345,638.92,637.43,0.31375994]
[1739310590498,1.340345,638.91,637.43,0.31375994]
[1739310590698,1.340345,638.9,637.43,0.31375994]
[1739310590899,1.340345,638.89,637.43,0.31375994]
[1739310591103,1.340345,638.88,637.43,0.31375994]
[1739310591403,1.340345,638.87,637.43,0.31375994]
[1739310591604,1.340345,638.86,637.43,0.31375994]
[1739310591803,1.340345,638.85,637.43,0.31375994]
[1739310592001,1.340345,638.84,637.43,0.31375994]
[1739310592198,1.340345,638.83,637.43,0.31375994]
[1739310592401,1.34052355,638.82,637.43,0.31375994]
[1739310592598,1.34052355,638.81,637.43,0.31375994]
[1739310592905,1.34016717,638.8,637.43,0.31375994]
[1739310593104,1.34016717,638.79,637.43,0.31375994]
[1739310593303,1.34016717,638.78,637.43,0.31375994]
[1739310593500,1.34016717,638.77,637.43,0.31375994]
[1739310593701,1.34016717,638.76,637.43,0.31375994]
[1739310593903,1.34016717,638.75,637.43,0.31375994]
[1739310594105,1.34016717,638.74,637.43,0.31375994]
[1739310594304,1.34016717,638.73,637.43,0.31375994]
[1739310594507,1.34016717,638.72,637.43,0.31375994]
[1739310594708,1.34016717,638.71,637.43,0.31375994]
[1739310595005,1.34016717,638.7,637.43,0.31375994]
[1739310595207,1.34016717,638.69,637.43,0.31375994]
[1739310595506,1.34016717,638.68,637.43,0.31375994]
[1739310595708,1.34016717,638.67,637.43,0.31375994]
[1739310595902,1.34016717,638.66,637.43,0.31375994]
[1739310596104,1.34016717,638.65,637.43,0.31375994]
[1739310596307,1.34016717,638.64,637.43,0.31375994]
[1739310596504,1.33962731,638.63,637.43,0.31375994]
[1739310596706,1.33962731,638.62,637.43,0.31375994]
[1739310596905,1.33962731,638.61,637.43,0.31375994]
[1739310597111,0.865,638.66,637.43,0.31375994]
[1739310597112,1.33962731,638.6,637.43,0.31375994]
[1739310597410,1.33962731,638.59,637.43,0.31375994]
[1739310597709,1.33962731,638.58,637.43,0.31375994]
[1739310597908,1.33962731,638.57,637.43,0.31375994]
[1739310598103,1.33962731,638.56,637.43,0.31375994]
[1739310598304,1.33962731,638.55,637.43,0.31375994]
[1739310598506,1.33962731,638.54,637.43,0.31375994]
[1739310598708,1.33962731,638.53,637.43,0.31375994]
[1739310598906,0.865,638.66,637.43,0.31375994]
[1739310599104,1.33937062,638.65,637.43,0.31375994]
[1739310599304,1.33937062,638.64,637.43,0.31375994]
[1739310599610,1.33937062,638.63,637.43,0.31375994]
[1739310599809,0.865,638.66,637.43,0.31375994]
[1739310599810,1.33937062,638.62,637.43,0.31375994]
[1739310600002,0.865,638.66,637.43,0.31375994]
[1739310600003,1.33937062,638.61,637.43,0.31375994]
[1739310600312,1.33937062,638.6,637.43,0.31375994]
[1739310600609,1.33934543,638.59,637.43,0.31375994]
[1739310600810,1.33934543,638.58,637.43,0.31375994]
[1739310601011,1.33934362,638.57,637.43,0.31375994]
[1739310601203,1.33934362,638.56,637.43,0.31375994]
[1739310601406,1.33934362,638.55,637.43,0.31375994]
[1739310601604,1.33934362,638.54,637.43,0.31375994]
[1739310601804,1.33934362,638.53,637.43,0.31375994]
[1739310602010,1.33934362,638.52,637.43,0.31375994]
[1739310602310,1.33934362,638.51,637.43,0.31375994]
[1739310602511,0.865,638.66,637.43,0.31375994]
[1739310602512,1.33944085,638.5,637.43,0.31375994]
[1739310602719,0.865,638.66,637.43,0.31375994]
[1739310602911,1.33942382,638.65,637.43,0.31375994]
[1739310603113,0.865,638.66,637.43,0.31375994]
[1739310603114,1.33942382,638.64,637.43,0.31375994]
[1739310603317,1.33942382,638.63,637.43,0.31375994]
[1739310603607,1.33942382,638.62,637.43,0.31375994]
[1739310603812,1.33942382,638.61,637.43,0.31375994]
[1739310604015,1.33942382,638.6,637.43,0.31375994]
[1739310604212,1.33942382,638.59,637.43,0.31375994]
[1739310604412,1.33942382,638.58,637.43,0.31375994]
[1739310604612,1.33942382,638.57,637.43,0.31375994]
[1739310604807,1.33942382,638.56,637.43,0.31375994]
[1739310605013,1.33942382,638.55,637.43,0.31375994]
[1739310605216,1.33942382,638.54,637.43,0.31375994]
[1739310605513,1.33942382,638.53,637.43,0.31375994]
[1739310605713,1.33942382,638.52,637.43,0.31375994]
[1739310605913,1.33942382,638.51,637.43,0.31375994]
[1739310606113,1.33942382,638.5,637.43,0.31375994]
[1739310606311,1.33942382,638.49,637.43,0.31375994]
[1739310606615,1.33942382,638.48,637.43,0.31375994]
[1739310606815,1.33942382,638.47,637.43,0.31375994]
[1739310607014,1.33942382,638.46,637.43,0.31375994]
[1739310607214,1.33942382,638.45,637.43,0.31375994]
[1739310607418,0.662,638.59,637.43,0.31375994]
[1739310607619,1.33934911,638.58,637.43,0.31375994]
[1739310607818,1.33934911,638.57,637.43,0.31375994]
[1739310608116,1.33935112,638.56,637.43,0.31375994]
[1739310608412,1.33935112,638.55,637.43,0.31375994]
[1739310608616,1.33935112,638.54,637.43,0.31375994]
[1739310608818,1.33935112,638.53,637.43,0.31375994]
[1739310609116,1.33935112,638.52,637.43,0.31375994]
[1739310609317,1.33935112,638.51,637.43,0.31375994]
[1739310609517,1.33935112,638.5,637.43,0.31375994]
[1739310609709,1.33935112,638.49,637.43,0.31375994]
[1739310609911,1.33935112,638.48,637.43,0.31375994]
[1739310610212,1.33928772,638.47,637.43,0.31375994]
[1739310610416,0.662,638.59,637.43,0.31375994]
[1739310610618,1.33912431,638.58,637.43,0.31375994]
[1739310610916,1.33912431,638.57,637.43,0.31375994]
[1739310611116,1.33912431,638.56,637.43,0.31375994]
[1739310611319,0.662,638.59,637.43,0.31375994]